fUSD/lending_fUSD_20260610
["ID","MTS","AMOUNT","RATE_DAILY","PERIOD"]
[424646582,1781028646000,-500.0,0.0002757,2]
[424646562,1781028646000,-500.0,0.0002757,2]
[424646566,1781028646000,-500.0,0.0002757,2]
[424646534,1781028646000,-170.74904792,0.00027471,2]
[424646536,1781028646000,-11913.96805586,0.00027504,2]
[424646539,1781028646000,-150.0,0.00027547,7]
[424646542,1781028646000,-500.0,0.0002757,2]
[424646540,1781028646000,-150.0,0.00027547,7]
[424646541,1781028646000,-274.0,0.00027547,7]
[424646538,1781028646000,-150.0,0.00027547,7]
[424646547,1781028646000,-500.0,0.0002757,2]
[424646546,1781028646000,-500.0,0.0002757,2]
[424646548,1781028646000,-500.0,0.0002757,2]
[424646545,1781028646000,-500.0,0.0002757,2]
[424646553,1781028646000,-500.0,0.0002757,2]
[424646554,1781028646000,-500.0,0.0002757,2]
[424646544,1781028646000,-500.0,0.0002757,2]
[424646549,1781028646000,-500.0,0.0002757,2]
[424646564,1781028646000,-500.0,0.0002757,2]
[424646559,1781028646000,-500.0,0.0002757,2]
[424646569,1781028646000,-500.0,0.0002757,2]
[424646568,1781028646000,-500.0,0.0002757,2]
[424646567,1781028646000,-500.0,0.0002757,2]
[424646558,1781028646000,-500.0,0.0002757,2]
[424646557,1781028646000,-500.0,0.0002757,2]
[424646556,1781028646000,-500.0,0.0002757,2]
[424646552,1781028646000,-500.0,0.0002757,2]
[424646555,1781028646000,-500.0,0.0002757,2]
[424646550,1781028646000,-500.0,0.0002757,2]
[424646595,1781028646000,-1163.63,0.00027604,7]
[424646551,1781028646000,-500.0,0.0002757,2]
[424646612,1781028647000,-379.55299237,0.00027666,2]
[424646619,1781028647000,-416.07381082,0.00027666,2]
[424646616,1781028647000,-173.42652392,0.00027666,2]
[424646614,1781028647000,-158.81149033,0.00027666,2]
[424646615,1781028647000,-234.47321391,0.00027666,2]
[424646620,1781028647000,-168.42469505,0.00027666,2]
[424646630,1781028647000,-170.24865686,0.00027666,2]
[424646631,1781028647000,-203.45420837,0.00027666,2]
[424646621,1781028647000,-162.22262239,0.00027666,2]
[424646629,1781028647000,-206.58652604,0.00027666,2]
[424646632,1781028647000,-155.98059895,0.00027666,2]
[424646625,1781028647000,-180.99861386,0.00027666,2]
[424646606,1781028647000,-773.12,0.00027611,2]
[424646628,1781028647000,-201.27003366,0.00027666,2]
[424646610,1781028647000,-325.96825102,0.00027666,2]
[424646597,1781028647000,-1186.63,0.00027604,7]
[424646607,1781028647000,-230.0,0.00027638,2]
[424646623,1781028647000,-158.38869344,0.00027666,2]
[424646599,1781028647000,-150.0,0.00027604,7]
[424646601,1781028647000,-150.0,0.00027604,7]
[424646600,1781028647000,-150.0,0.00027604,7]
[424646603,1781028647000,-150.0,0.00027604,7]
[424646604,1781028647000,-150.0,0.00027604,7]
[424646617,1781028647000,-152.54434112,0.00027666,2]
[424646598,1781028647000,-150.0,0.00027604,7]
[424646608,1781028647000,-340.26632982,0.00027666,2]
[424646618,1781028647000,-454.00041081,0.00027666,2]
[424646611,1781028647000,-151.64165198,0.00027666,2]
[424646605,1781028647000,-281.0,0.00027604,7]
[424646613,1781028647000,-206.43189848,0.00027666,2]
[424646609,1781028647000,-204.97437075,0.00027666,2]
[424646602,1781028647000,-150.0,0.00027604,7]
[424646626,1781028647000,-197.5156344,0.00027666,2]
[424646622,1781028647000,-177.73658165,0.00027666,2]
[424646624,1781028647000,-172.76001064,0.00027666,2]
[424646652,1781028647000,-183.30457194,0.00027666,2]
[424646647,1781028647000,-151.4721375,0.00027666,2]
[424646653,1781028647000,-228.41274607,0.00027666,2]
[424646657,1781028647000,-161.00120896,0.00027668,2]
[424646655,1781028647000,-186.22934316,0.00027666,2]
[424646656,1781028647000,-192.96027103,0.00027666,2]
[424646650,1781028647000,-198.61518839,0.00027666,2]
[424646654,1781028647000,-204.40939465,0.00027666,2]
[424646659,1781028647000,-193.01405632,0.00027668,2]
[424646666,1781028647000,-854.0,0.00027671,2]
[424646660,1781028647000,-179.71394717,0.00027668,2]
[424646665,1781028647000,-160.31139945,0.0002767,2]
[424646663,1781028647000,-170.19025665,0.0002767,2]
[424646627,1781028647000,-176.67791395,0.00027666,2]
[424646658,1781028647000,-165.86899079,0.00027668,2]
[424646649,1781028647000,-184.12889858,0.00027666,2]
[424646668,1781028647000,-154.6875,0.00027714,2]
[424646651,1781028647000,-208.11918612,0.00027666,2]
[424646648,1781028647000,-160.60664122,0.00027666,2]
[424646644,1781028647000,-150.55467094,0.00027666,2]
[424646635,1781028647000,-156.48674443,0.00027666,2]
[424646640,1781028647000,-158.32081844,0.00027666,2]
[424646646,1781028647000,-156.88204324,0.00027666,2]
[424646638,1781028647000,-183.74509809,0.00027666,2]
[424646636,1781028647000,-199.13510522,0.00027666,2]
[424646634,1781028647000,-196.81226789,0.00027666,2]
[424646641,1781028647000,-216.30822118,0.00027666,2]
[424646633,1781028647000,-223.89124233,0.00027666,2]
[424646639,1781028647000,-199.17496444,0.00027666,2]
[424646637,1781028647000,-166.18215946,0.00027666,2]
[424646643,1781028647000,-211.51750935,0.00027666,2]
[424646642,1781028647000,-154.77029475,0.00027666,2]
[424646645,1781028647000,-208.02045567,0.00027666,2]
[424646748,1781028648000,-200.0,0.00028713,2]
[424646741,1781028648000,-472.0,0.0002863,30]
[424646743,1781028648000,-2248.16,0.00028661,7]
[424646750,1781028648000,-2249.37,0.00028725,2]
[424646746,1781028648000,-2249.37,0.00028693,30]
[424646747,1781028648000,-2000.0,0.000287,2]
[424646745,1781028648000,-2248.16,0.00028693,30]
[424646752,1781028648000,-2248.16,0.00028756,7]
[424646742,1781028648000,-350.0,0.00028652,8]
[424646740,1781028648000,-500.0,0.0002863,30]
[424646734,1781028648000,-11492.9,0.0002863,30]
[424646749,1781028648000,-2248.16,0.00028725,2]
[424646751,1781028648000,-854.0,0.00028739,3]
[424646733,1781028648000,-4615.32,0.0002863,30]
[424646753,1781028648000,-2249.37,0.00028756,7]
[424646754,1781028648000,-500.0,0.00028767,2]
[424646736,1781028648000,-500.0,0.0002863,30]
[424646769,1781028648000,-11492.9,0.00028797,7]
[424646762,1781028648000,-150.0,0.00028797,30]
[424646760,1781028648000,-150.0,0.00028797,30]
[424646759,1781028648000,-150.0,0.00028797,30]
[424646763,1781028648000,-150.0,0.00028797,30]
[424646744,1781028648000,-2249.37,0.00028661,7]
[424646761,1781028648000,-150.0,0.00028797,30]
[424646757,1781028648000,-2249.37,0.00028788,30]
[424646756,1781028648000,-2248.16,0.00028788,30]
[424646766,1781028648000,-11483.15,0.00028797,7]
[424646765,1781028648000,-4622.64,0.00028797,7]
[424646764,1781028648000,-3150.81,0.00028797,7]
[424646755,1781028648000,-217.55092658,0.00028767,2]
[424646758,1781028648000,-150.0,0.00028797,30]
[424646731,1781028648000,-11483.15,0.0002863,30]
[424646718,1781028648000,-150.0,0.000285,7]
[424646732,1781028648000,-3160.53,0.0002863,30]
[424646767,1781028648000,-3160.53,0.00028797,7]
[424646710,1781028648000,-2000.0,0.00028433,7]
[424646711,1781028648000,-6426.36,0.00028474,7]
[424646712,1781028648000,-170.24867232,0.00028493,2]
[424646705,1781028648000,-1455.5,0.00028267,2]
[424646708,1781028648000,-1127.64,0.00028408,7]
[424646706,1781028648000,-544.0,0.00028306,7]
[424646704,1781028648000,-151.0,0.00028262,2]
[424646709,1781028648000,-1149.94,0.00028408,7]
[424646707,1781028648000,-439.00529101,0.00028336,2]
[424646714,1781028648000,-1121.71,0.000285,7]
[424646715,1781028648000,-150.0,0.000285,7]
[424646725,1781028648000,-482.30328528,0.00028527,2]
[424646717,1781028648000,-150.0,0.000285,7]
[424646735,1781028648000,-2249.37,0.0002863,2]
[424646721,1781028648000,-150.0,0.000285,7]
[424646719,1781028648000,-150.0,0.000285,7]
[424646716,1781028648000,-150.0,0.000285,7]
[424646723,1781028648000,-286.0,0.000285,7]
[424646720,1781028648000,-150.0,0.000285,7]
[424646724,1781028648000,-192.0,0.000285,7]
[424646722,1781028648000,-150.0,0.000285,7]
[424646727,1781028648000,-542.98,0.0002863,2]
[424646738,1781028648000,-500.0,0.0002863,30]
[424646739,1781028648000,-500.0,0.0002863,30]
[424646737,1781028648000,-500.0,0.0002863,30]
[424646726,1781028648000,-5568.94,0.0002863,30]
[424646729,1781028648000,-4622.64,0.0002863,30]
[424646728,1781028648000,-3150.81,0.0002863,30]
[424646730,1781028648000,-2248.16,0.0002863,2]
[424646713,1781028648000,-166.6875,0.00028493,2]
[424646770,1781028648000,-1006.66,0.000288,7]
[424646798,1781028648000,-473.83176444,0.00028904,2]
[424646768,1781028648000,-4615.32,0.00028797,7]
[424646804,1781028648000,-2249.37,0.00028947,7]
[424646808,1781028648000,-11483.15,0.00028964,2]
[424646810,1781028648000,-4615.32,0.00028964,2]
[424646819,1781028648000,-346.85304785,0.0002897,2]
[424646811,1781028648000,-11492.9,0.00028964,2]
[424646809,1781028648000,-3160.53,0.00028964,2]
[424646821,1781028648000,-908.00082163,0.0002897,2]
[424646812,1781028648000,-409.94874151,0.0002897,2]
[424646814,1781028648000,-303.28330396,0.0002897,2]
[424646818,1781028648000,-468.94642783,0.0002897,2]
[424646813,1781028648000,-651.93650205,0.0002897,2]
[424646820,1781028648000,-305.08868224,0.0002897,2]
[424646815,1781028648000,-759.10598474,0.0002897,2]
[424646817,1781028648000,-317.62298067,0.0002897,2]
[424646799,1781028648000,-1743.0,0.00028904,2]
[424646826,1781028648000,-355.47316329,0.0002897,2]
[424646825,1781028648000,-324.44524479,0.0002897,2]
[424646824,1781028648000,-336.84939009,0.0002897,2]
[424646829,1781028648000,-361.99722772,0.0002897,2]
[424646827,1781028648000,-316.77738687,0.0002897,2]
[424646834,1781028648000,-413.17305209,0.0002897,2]
[424646833,1781028648000,-402.54006732,0.0002897,2]
[424646828,1781028648000,-345.52002128,0.0002897,2]
[424646832,1781028648000,-353.35582789,0.0002897,2]
[424646823,1781028648000,-189.44992842,0.0002897,2]
[424646831,1781028648000,-241.11299589,0.0002897,2]
[424646830,1781028648000,-395.0312688,0.0002897,2]
[424646836,1781028648000,-406.90841673,0.0002897,2]
[424646835,1781028648000,-340.49731371,0.0002897,2]
[424646771,1781028648000,-10230.44,0.000288,14]
[424646822,1781028648000,-832.14762164,0.0002897,2]
[424646803,1781028648000,-2248.16,0.00028947,7]
[424646816,1781028648000,-412.86379696,0.0002897,2]
[424646800,1781028648000,-2248.16,0.00028915,2]
[424646784,1781028648000,-2249.37,0.0002882,2]
[424646781,1781028648000,-151.0,0.0002881,2]
[424646793,1781028648000,-200.0,0.000289,2]
[424646792,1781028648000,-800.78279,0.000289,2]
[424646782,1781028648000,-341.0,0.0002882,30]
[424646777,1781028648000,-1910.18787185,0.0002881,2]
[424646785,1781028648000,-2248.16,0.00028852,7]
[424646778,1781028648000,-280.03725111,0.0002881,2]
[424646776,1781028648000,-232.56974424,0.0002881,2]
[424646779,1781028648000,-280.03725111,0.0002881,2]
[424646775,1781028648000,-233.5188934,0.0002881,2]
[424646773,1781028648000,-215.89329178,0.000288,10]
[424646772,1781028648000,-160.0,0.000288,10]
[424646802,1781028648000,-164.0,0.00028937,2]
[424646780,1781028648000,-151.0,0.0002881,2]
[424646783,1781028648000,-2248.16,0.0002882,2]
[424646774,1781028648000,-154.6875,0.0002881,2]
[424646801,1781028648000,-2249.37,0.00028915,2]
[424646787,1781028648000,-500.0,0.00028855,2]
[424646797,1781028648000,-341.0,0.000289,2]
[424646806,1781028648000,-3150.81,0.00028964,2]
[424646796,1781028648000,-300.0,0.000289,10]
[424646794,1781028648000,-600.0,0.000289,10]
[424646805,1781028648000,-1000.0,0.00028953,7]
[424646807,1781028648000,-4622.64,0.00028964,2]
[424646789,1781028648000,-150.0,0.00028855,2]
[424646791,1781028648000,-2249.37,0.00028883,30]
[424646790,1781028648000,-2248.16,0.00028883,30]
[424646788,1781028648000,-150.0,0.00028855,2]
[424646786,1781028648000,-2249.37,0.00028852,7]
[424646795,1781028648000,-200.0,0.000289,2]
[424646887,1781028649000,-2249.37,0.00028979,30]
[424646885,1781028649000,-320.6227989,0.00028974,2]
[424646888,1781028649000,-203.91667364,0.00028981,30]
[424646883,1781028649000,-340.3805133,0.00028974,2]
[424646879,1781028649000,-331.73798158,0.00028972,2]
[424646880,1781028649000,-386.02811265,0.00028972,2]
[424646871,1781028649000,-179.97120458,0.00028971,2]
[424646878,1781028649000,-151.61051691,0.00028972,2]
[424646876,1781028649000,-169.83106825,0.00028972,2]
[424646869,1781028649000,-372.45868633,0.0002897,2]
[424646872,1781028649000,-182.600014,0.00028971,5]
[424646866,1781028649000,-152.58806365,0.0002897,2]
[424646882,1781028649000,-317.30166369,0.00028974,2]
[424646867,1781028649000,-456.82549214,0.0002897,2]
[424646877,1781028649000,-322.00241792,0.00028972,2]
[424646881,1781028649000,-359.42789434,0.00028972,2]
[424646895,1781028649000,-500.0,0.00029,2]
[424646889,1781028649000,-450.0,0.00029,2]
[424646884,1781028649000,-344.4658116,0.00028974,2]
[424646891,1781028649000,-401.0,0.00029,2]
[424646901,1781028649000,-500.0,0.00029,2]
[424646902,1781028649000,-500.0,0.00029,2]
[424646903,1781028649000,-316.6,0.00029,2]
[424646890,1781028649000,-447.0,0.00029,2]
[424646896,1781028649000,-500.0,0.00029,2]
[424646892,1781028649000,-500.0,0.00029,2]
[424646898,1781028649000,-500.0,0.00029,2]
[424646897,1781028649000,-500.0,0.00029,2]
[424646893,1781028649000,-500.0,0.00029,2]
[424646899,1781028649000,-500.0,0.00029,2]
[424646900,1781028649000,-500.0,0.00029,2]
[424646886,1781028649000,-2248.16,0.00028979,30]
[424646868,1781028649000,-408.8187893,0.0002897,2]
[424646839,1781028649000,-393.62453578,0.0002897,2]
[424646865,1781028649000,-366.60914388,0.0002897,2]
[424646894,1781028649000,-500.0,0.00029,2]
[424646838,1781028649000,-447.78248466,0.0002897,2]
[424646846,1781028649000,-316.64163687,0.0002897,2]
[424646837,1781028649000,-311.96119791,0.0002897,2]
[424646847,1781028649000,-244.92839459,0.0002897,2]
[424646841,1781028649000,-312.97348886,0.0002897,2]
[424646843,1781028649000,-332.36431892,0.0002897,2]
[424646845,1781028649000,-398.34992888,0.0002897,2]
[424646842,1781028649000,-398.27021044,0.0002897,2]
[424646840,1781028649000,-198.21724785,0.0002897,2]
[424646844,1781028649000,-367.49019618,0.0002897,2]
[424646849,1781028649000,-432.61644236,0.0002897,2]
[424646848,1781028649000,-188.41258152,0.0002897,2]
[424646858,1781028649000,-416.04091134,0.0002897,2]
[424646850,1781028649000,-309.5405895,0.0002897,2]
[424646859,1781028649000,-313.76408649,0.0002897,2]
[424646856,1781028649000,-206.53983365,0.0002897,2]
[424646874,1781028649000,-150.0,0.00028972,7]
[424646873,1781028649000,-221.999838,0.00028971,2]
[424646875,1781028649000,-219.26265665,0.00028972,2]
[424646863,1781028649000,-397.23037677,0.0002897,2]
[424646864,1781028649000,-416.23837224,0.0002897,2]
[424646862,1781028649000,-368.25779716,0.0002897,2]
[424646870,1781028649000,-385.92054206,0.0002897,2]
[424646857,1781028649000,-190.08407119,0.0002897,2]
[424646855,1781028649000,-221.81559523,0.0002897,2]
[424646851,1781028649000,-161.55338496,0.0002897,2]
[424646853,1781028649000,-204.54620729,0.0002897,2]
[424646860,1781028649000,-302.94427499,0.0002897,2]
[424646854,1781028649000,-301.10934188,0.0002897,2]
[424646861,1781028649000,-321.21328244,0.0002897,2]
[424646852,1781028649000,-423.0350187,0.0002897,2]
[424646904,1781028649000,-200.0,0.00029,2]
[424646943,1781028649000,-1121.71,0.00029,7]
[424646908,1781028649000,-200.0,0.00029,2]
[424646939,1781028649000,-500.0,0.00029,2]
[424646938,1781028649000,-500.0,0.00029,2]
[424646941,1781028649000,-165.25473091,0.00029,2]
[424646946,1781028649000,-215.89329178,0.00029,7]
[424646956,1781028649000,-158.0,0.00029,4]
[424646958,1781028649000,-161.0,0.00029,4]
[424646957,1781028649000,-158.0,0.00029,4]
[424646945,1781028649000,-215.89329178,0.00029,30]
[424646947,1781028649000,-168.0,0.00029,4]
[424646951,1781028649000,-158.0,0.00029,4]
[424646950,1781028649000,-158.0,0.00029,4]
[424646949,1781028649000,-158.0,0.00029,4]
[424646948,1781028649000,-158.0,0.00029,4]
[424646952,1781028649000,-158.0,0.00029,4]
[424646953,1781028649000,-158.0,0.00029,4]
[424646954,1781028649000,-158.0,0.00029,4]
[424646955,1781028649000,-158.0,0.00029,4]
[424646906,1781028649000,-200.0,0.00029,2]
[424646971,1781028649000,-166.6875,0.00029041,2]
[424646963,1781028649000,-157.0,0.00029,4]
[424646972,1781028649000,-2248.16,0.00029042,7]
[424646968,1781028649000,-2248.16,0.0002901,2]
[424646962,1781028649000,-157.0,0.00029,4]
[424646942,1781028649000,-227.18927055,0.00029,2]
[424646966,1781028649000,-527.30188811,0.00029,2]
[424646969,1781028649000,-2249.37,0.0002901,2]
[424646964,1781028649000,-157.0,0.00029,4]
[424646965,1781028649000,-3054.0,0.00029,7]
[424646961,1781028649000,-157.0,0.00029,4]
[424646959,1781028649000,-157.0,0.00029,4]
[424646960,1781028649000,-157.0,0.00029,4]
[424646967,1781028649000,-161.23602869,0.0002901,2]
[424646973,1781028649000,-2249.37,0.00029042,7]
[424646970,1781028649000,-151.0,0.00029029,7]
[424646944,1781028649000,-7156.52,0.00029,2]
[424646907,1781028649000,-200.0,0.00029,2]
[424646909,1781028649000,-200.0,0.00029,2]
[424646910,1781028649000,-200.0,0.00029,2]
[424646915,1781028649000,-200.0,0.00029,2]
[424646914,1781028649000,-200.0,0.00029,2]
[424646911,1781028649000,-200.0,0.00029,2]
[424646905,1781028649000,-200.0,0.00029,2]
[424646912,1781028649000,-200.0,0.00029,2]
[424646935,1781028649000,-500.0,0.00029,2]
[424646913,1781028649000,-200.0,0.00029,2]
[424646916,1781028649000,-200.0,0.00029,2]
[424646929,1781028649000,-500.0,0.00029,2]
[424646919,1781028649000,-215.27,0.00029,2]
[424646918,1781028649000,-200.0,0.00029,2]
[424646931,1781028649000,-500.0,0.00029,2]
[424646917,1781028649000,-200.0,0.00029,2]
[424646920,1781028649000,-500.0,0.00029,2]
[424646940,1781028649000,-2996.859941,0.00029,2]
[424646930,1781028649000,-500.0,0.00029,2]
[424646933,1781028649000,-500.0,0.00029,2]
[424646937,1781028649000,-500.0,0.00029,2]
[424646936,1781028649000,-500.0,0.00029,2]
[424646932,1781028649000,-500.0,0.00029,2]
[424646925,1781028649000,-500.0,0.00029,2]
[424646934,1781028649000,-500.0,0.00029,2]
[424646923,1781028649000,-500.0,0.00029,2]
[424646928,1781028649000,-500.0,0.00029,2]
[424646926,1781028649000,-500.0,0.00029,2]
[424646924,1781028649000,-500.0,0.00029,2]
[424646927,1781028649000,-500.0,0.00029,2]
[424646921,1781028649000,-500.0,0.00029,2]
[424646922,1781028649000,-500.0,0.00029,2]
[424647013,1781028650000,-11492.9,0.00029299,7]
[424647019,1781028650000,-700.0,0.00029319,30]
[424647021,1781028650000,-4388.0,0.00029319,30]
[424647020,1781028650000,-2225.0,0.00029319,30]
[424647018,1781028650000,-785.0,0.00029319,30]
[424647015,1781028650000,-10230.44,0.000293,14]
[424647005,1781028650000,-2579.8488,0.00029234,2]
[424647016,1781028650000,-179.97120458,0.00029319,2]
[424647009,1781028650000,-4622.64,0.00029299,7]
[424647010,1781028650000,-11483.15,0.00029299,7]
[424647007,1781028650000,-1000.0,0.00029293,7]
[424647006,1781028650000,-854.0,0.00029273,4]
[424647014,1781028650000,-1006.66,0.000293,7]
[424647022,1781028650000,-781.0,0.00029319,30]
[424647035,1781028650000,-178.58424541,0.00029358,2]
[424647017,1781028650000,-666.0,0.00029319,30]
[424647024,1781028650000,-2183.0,0.0002932,30]
[424647025,1781028650000,-817.0,0.0002932,30]
[424647026,1781028650000,-653.0,0.0002932,30]
[424647027,1781028650000,-3290.0,0.0002932,30]
[424647034,1781028650000,-1980.8648231,0.00029358,2]
[424647028,1781028650000,-735.0,0.00029321,30]
[424647029,1781028650000,-1271.0,0.00029321,30]
[424647030,1781028650000,-343.0,0.00029321,30]
[424647033,1781028650000,-232.56974424,0.00029358,2]
[424647032,1781028650000,-242.15909246,0.00029358,2]
[424647036,1781028650000,-290.3986294,0.00029358,2]
[424647037,1781028650000,-151.0,0.00029358,2]
[424647004,1781028650000,-2249.49,0.00029232,7]
[424647023,1781028650000,-592.0,0.0002932,30]
[424647002,1781028650000,-19267.92898291,0.00029226,2]
[424646998,1781028650000,-500.0,0.00029198,2]
[424647008,1781028650000,-3150.81,0.00029299,7]
[424647031,1781028650000,-154.6875,0.00029358,2]
[424646974,1781028650000,-2248.16,0.00029074,30]
[424646984,1781028650000,-378.13809427,0.0002913,20]
[424646985,1781028650000,-3150.81,0.00029132,30]
[424646982,1781028650000,-401.81411277,0.0002913,20]
[424646978,1781028650000,-2249.37,0.00029105,2]
[424646976,1781028650000,-232.92584207,0.00029105,2]
[424646975,1781028650000,-2249.37,0.00029074,30]
[424646981,1781028650000,-3643.0,0.00029121,2]
[424646983,1781028650000,-519.02839217,0.0002913,5]
[424646977,1781028650000,-2248.16,0.00029105,2]
[424646979,1781028650000,-6075.0,0.00029121,2]
[424646980,1781028650000,-1214.0,0.00029121,2]
[424646990,1781028650000,-11492.9,0.00029132,30]
[424647003,1781028650000,-2248.21,0.00029232,7]
[424646999,1781028650000,-520.64,0.000292,7]
[424646994,1781028650000,-2249.37,0.00029169,30]
[424646997,1781028650000,-1750.0,0.00029171,10]
[424646987,1781028650000,-11483.15,0.00029132,30]
[424646986,1781028650000,-4622.64,0.00029132,30]
[424646992,1781028650000,-2249.37,0.00029137,7]
[424646993,1781028650000,-2248.16,0.00029169,30]
[424646991,1781028650000,-2248.16,0.00029137,7]
[424646996,1781028650000,-176.0,0.00029171,10]
[424646995,1781028650000,-276.0,0.00029169,30]
[424646989,1781028650000,-4615.32,0.00029132,30]
[424647001,1781028650000,-2249.37,0.00029201,2]
[424647012,1781028650000,-4615.32,0.00029299,7]
[424647011,1781028650000,-3160.53,0.00029299,7]
[424647000,1781028650000,-2248.16,0.00029201,2]
[424646988,1781028650000,-3160.53,0.00029132,30]
[424647039,1781028650000,-350.0,0.00029378,10]
[424647053,1781028650000,-152.0,0.00029483,30]
[424647041,1781028650000,-4949.4401,0.00029383,2]
[424647079,1781028650000,-179.97120458,0.00029666,2]
[424647078,1781028650000,-942.73314658,0.00029648,2]
[424647074,1781028650000,-166.6875,0.00029589,2]
[424647073,1781028650000,-565.0,0.00029576,7]
[424647080,1781028650000,-1000.0,0.00029729,7]
[424647089,1781028650000,-1006.66,0.000298,7]
[424647090,1781028650000,-10230.44,0.000298,14]
[424647091,1781028650000,-1121.71,0.000298,7]
[424647081,1781028650000,-350.0,0.00029759,14]
[424647082,1781028650000,-350.0,0.00029759,14]
[424647083,1781028650000,-350.0,0.00029759,14]
[424647085,1781028650000,-379.84,0.00029759,14]
[424647084,1781028650000,-350.0,0.00029759,14]
[424647088,1781028650000,-163.0,0.0002978,7]
[424647087,1781028650000,-163.0,0.0002978,7]
[424647086,1781028650000,-166.0,0.0002978,7]
[424647092,1781028650000,-171.44,0.000298,14]
[424647103,1781028650000,-1000.0,0.0002981,2]
[424647104,1781028650000,-1000.0,0.0002981,2]
[424647096,1781028650000,-854.0,0.00029807,4]
[424647095,1781028650000,-3000.0,0.000298,3]
[424647093,1781028650000,-600.0,0.000298,10]
[424647098,1781028650000,-2000.0,0.0002981,2]
[424647094,1781028650000,-300.0,0.000298,10]
[424647099,1781028650000,-1204.55,0.0002981,2]
[424647101,1781028650000,-1000.0,0.0002981,2]
[424647097,1781028650000,-2000.0,0.0002981,2]
[424647038,1781028650000,-151.0,0.00029358,2]
[424647100,1781028650000,-1000.0,0.0002981,2]
[424647072,1781028650000,-237316.51759758,0.0002957,2]
[424647075,1781028650000,-2000.0,0.0002959,7]
[424647102,1781028650000,-1000.0,0.0002981,2]
[424647067,1781028650000,-764.55886233,0.00029483,2]
[424647077,1781028650000,-575.37,0.00029613,2]
[424647052,1781028650000,-172.17979501,0.00029483,30]
[424647040,1781028650000,-2000.0,0.00029383,2]
[424647044,1781028650000,-181.45986368,0.00029397,2]
[424647048,1781028650000,-152.0,0.00029483,30]
[424647047,1781028650000,-350.0,0.00029451,8]
[424647042,1781028650000,-10307.5733,0.00029383,2]
[424647045,1781028650000,-1121.71,0.000294,7]
[424647043,1781028650000,-33271.7254,0.00029383,2]
[424647046,1781028650000,-2000.0,0.000294,2]
[424647049,1781028650000,-152.0,0.00029483,30]
[424647050,1781028650000,-151.0,0.00029483,30]
[424647055,1781028650000,-152.0,0.00029483,30]
[424647058,1781028650000,-158.72228664,0.00029483,30]
[424647056,1781028650000,-152.0,0.00029483,30]
[424647051,1781028650000,-151.0,0.00029483,30]
[424647054,1781028650000,-152.0,0.00029483,30]
[424647059,1781028650000,-166.0,0.00029483,30]
[424647068,1781028650000,-200.0,0.00029486,2]
[424647069,1781028650000,-150.0,0.00029534,2]
[424647076,1781028650000,-575.64,0.00029611,2]
[424647071,1781028650000,-253.0,0.00029561,2]
[424647066,1781028650000,-166.0,0.00029483,30]
[424647070,1781028650000,-6647.0,0.00029561,10]
[424647063,1781028650000,-166.0,0.00029483,30]
[424647062,1781028650000,-166.0,0.00029483,30]
[424647064,1781028650000,-166.0,0.00029483,30]
[424647060,1781028650000,-166.0,0.00029483,30]
[424647057,1781028650000,-152.0,0.00029483,30]
[424647061,1781028650000,-166.0,0.00029483,30]
[424647065,1781028650000,-166.0,0.00029483,30]